fUST/lending_fUST_20251117
["ID","MTS","AMOUNT","RATE_DAILY","PERIOD"]
[394121856,1763309439584,-1000.0,0.00014247,2]
[394121857,1763309439594,-1000.0,0.00014247,2]
[394121858,1763309439603,-500.0,0.00014493,2]
[394121860,1763309439611,-500.0,0.00014493,2]
[394121861,1763309439620,-500.0,0.00014493,2]
[394121863,1763309439629,-14032.4603851,0.00014521,2]
[394121865,1763309439638,-253.39629108,0.00014548,2]
[394121866,1763309439648,-289.59576123,0.00014548,2]
[394121868,1763309439657,-452.04088355,0.00014548,2]
[394121869,1763309439666,-500.0,0.00014594,2]
[394121870,1763309439675,-500.0,0.00014594,2]
[394121871,1763309439684,-500.0,0.00014594,2]
[394121872,1763309439694,-500.0,0.00014594,2]
[394121873,1763309439703,-500.0,0.00014594,2]
[394121874,1763309439712,-500.0,0.00014594,2]
[394121875,1763309439722,-500.0,0.00014594,2]
[394121876,1763309439731,-500.0,0.00014594,2]
[394121877,1763309439740,-505.62954395,0.00014594,2]
[394121878,1763309439750,-500.0,0.00014594,2]
[394121879,1763309439759,-500.0,0.00014594,2]
[394121880,1763309439770,-500.0,0.00014594,2]
[394121881,1763309439780,-307.15840682,0.00014594,2]
[394121882,1763309439789,-500.0,0.00014594,2]
[394121883,1763309439798,-500.0,0.00014594,2]
[394121884,1763309439808,-500.0,0.00014594,2]
[394121885,1763309439817,-179.66978308,0.00014633,2]
[394121886,1763309439827,-2002.2552773,0.0001467,2]
[394121887,1763309439836,-22782.5922808,0.0001467,2]
[394121888,1763309439846,-15824.99780133,0.00014695,2]
[394121889,1763309439855,-4010.0445866,0.00014696,2]
[394121890,1763309439864,-5867.2333241,0.00014696,2]
[394121892,1763309440373,-3e-08,0.00014696,2]
[394121930,1763309446348,-11937.39549121,0.00014549,2]
[394121931,1763309446359,-25025.55995097,0.00014696,2]
[394121932,1763309446369,-174.436633,0.00014696,2]
[394121933,1763309446379,-1500.0,0.00014768,2]
[394121934,1763309446389,-1500.0,0.00014795,2]
[394121936,1763309446399,-1500.0,0.00014795,2]
[394121937,1763309446409,-586.42858612,0.00014795,2]
[394121940,1763309446421,-865.81138896,0.00014795,2]
[394121942,1763309446432,-503.53043094,0.00014795,2]
[394121944,1763309446442,-1500.0,0.00014795,2]
[394121946,1763309446451,-500.0,0.00014795,2]
[394121948,1763309446461,-500.0,0.00014795,2]
[394121950,1763309446471,-470.13609105,0.00014804,2]
[394121952,1763309446480,-500.0,0.00014804,2]
[394121955,1763309446490,-500.0,0.00014804,2]
[394121958,1763309446499,-629.0,0.00014842,2]
[394121961,1763309446508,-882.11981246,0.00014842,2]
[394121979,1763309971495,500.0,0.00038441,120]
[394121980,1763309971750,353.30288714,0.00038441,120]
[394121982,1763309999333,766.7179815,0.00017257,7]
[394123270,1763310090326,1068.0,0.0003,120]
[394123272,1763310143350,463.35573441,0.00017257,7]
[394123988,1763310366343,792.63,0.00038443,30]
[394124035,1763310408138,-216.68123857,0.00011544,2]
[394124111,1763310442189,205.7319,0.00013699,7]
[394126140,1763310632536,-269.36701453,0.00011747,2]
[394126142,1763310632546,-269.36701453,0.00011865,2]
[394126143,1763310632556,-313.06039647,0.0001201,2]
[394126146,1763310632671,-300.0,0.0001201,2]
[394126147,1763310632683,-300.0,0.0001201,2]
[394126148,1763310632696,-300.0,0.0001201,2]
[394126149,1763310632706,-621.63911694,0.0001201,2]
[394126150,1763310632720,-578.36088306,0.0001201,2]
[394126152,1763310632731,-1706.51322842,0.00012011,2]
[394126153,1763310632742,-1706.51322842,0.00012011,2]
[394126154,1763310632752,-1706.51322842,0.00012011,2]
[394126155,1763310632762,-1706.51322842,0.00012011,2]
[394126156,1763310632771,-1706.51322842,0.00012011,2]
[394126157,1763310632781,-1706.51322842,0.00012011,2]
[394126159,1763310632791,-1706.51322842,0.00012011,2]
[394126160,1763310632801,-1706.51322842,0.00012011,2]
[394126161,1763310632811,-1706.51322842,0.00012011,2]
[394126162,1763310632821,-1706.51322842,0.00012011,2]
[394126163,1763310632831,-1706.51322842,0.00012011,2]
[394126164,1763310632843,-1706.51322842,0.00012011,2]
[394126166,1763310632853,-1706.51322842,0.00012011,2]
[394126167,1763310632864,-1706.51322842,0.00012011,2]
[394126168,1763310632874,-1706.51322842,0.00012011,2]
[394126169,1763310632885,-1706.51322842,0.00012011,2]
[394126170,1763310632897,-1706.51322842,0.00012011,2]
[394126172,1763310632908,-1706.51322842,0.00012011,2]
[394126173,1763310632918,-1677.70196613,0.00012011,2]
[394126174,1763310632929,-1677.70196613,0.00012011,2]
[394126175,1763310632939,-1677.70196613,0.00012011,2]
[394126176,1763310632953,-1677.70196613,0.00012011,2]
[394126177,1763310632963,-1677.70196613,0.00012011,2]
[394126179,1763310632973,-1677.70196613,0.00012011,2]
[394126180,1763310632983,-1677.70196613,0.00012011,2]
[394126181,1763310632993,-1677.70196613,0.00012011,2]
[394126182,1763310633004,-1677.70196613,0.00012011,2]
[394126183,1763310633016,-805.0833102,0.00012011,2]
[394126187,1763310633180,-1677.70196613,0.00012011,2]
[394126188,1763310633191,-507.19071239,0.00012011,2]
[394126190,1763310633202,-330.43829154,0.00012011,2]
[394126221,1763310634919,800.0,0.00032877,120]
[394126251,1763310636615,3370.0,0.00019,30]
[394126347,1763310640359,-500.0,0.0001201,2]
[394126348,1763310640368,-140.70557775,0.0001201,2]
[394126477,1763310646378,-304.70190634,0.00011889,2]
[394126478,1763310646448,-734.72308034,0.00011889,2]
[394126479,1763310646460,-63.04794426,0.0001201,2]
[394126480,1763310646469,-25.95025278,0.0001201,2]
[394128207,1763310746929,500.0,0.00038443,120]
[394128215,1763310747287,500.0,0.00038443,120]
[394128218,1763310747422,500.0,0.00038443,120]
[394128223,1763310747660,500.0,0.00038443,120]
[394128228,1763310747883,500.0,0.00038443,120]
[394128234,1763310748116,500.0,0.00038443,120]
[394128239,1763310748369,500.0,0.00038443,120]
[394128244,1763310748623,500.0,0.00038443,120]
[394128250,1763310748878,500.0,0.00038443,120]
[394128255,1763310749103,500.0,0.00038443,120]
[394128261,1763310749346,500.0,0.00038443,120]
[394128266,1763310749576,534.98043083,0.00038443,120]
[394131995,1763311067693,-321.77068296,0.00011257,2]
[394131996,1763311082861,-263.97967424,0.00011929,2]
[394131997,1763311098795,-1200.0,0.00012127,2]
[394131998,1763311098923,-300.0,0.00012127,2]
[394131999,1763311112836,500.0,0.00012127,2]
[394132000,1763311112880,500.0,0.00012127,2]
[394132001,1763311112927,500.0,0.00012127,2]
[394132002,1763311112964,500.0,0.00012127,2]
[394132003,1763311113004,500.0,0.00012127,2]
[394132004,1763311113036,500.0,0.00012127,2]
[394132005,1763311113091,500.0,0.00012127,2]
[394132006,1763311113125,500.0,0.00012127,2]
[394132007,1763311113174,500.0,0.00012127,2]
[394132008,1763311113209,500.0,0.00012127,2]
[394132009,1763311113244,500.0,0.00012127,2]
[394132010,1763311113278,500.0,0.00012127,2]
[394132011,1763311113335,500.0,0.00012127,2]
[394132012,1763311113375,252.41136138,0.00012127,2]
[394132013,1763311113420,247.59863862,0.00012127,2]
[394132014,1763311113446,252.40136138,0.00012127,2]
[394132015,1763311113483,500.0,0.00012127,2]
[394132016,1763311113546,500.0,0.00012127,2]
[394132017,1763311113577,560.83335116,0.00012127,2]
[394132018,1763311114118,-36.93526416,0.00012128,2]
[394132019,1763311114157,-10000.01,0.00012128,2]
[394132020,1763311114176,-10000.01,0.00012128,2]
[394132021,1763311114324,-10000.01,0.00012128,2]
[394132022,1763311114338,-10000.01,0.00012128,2]
[394132023,1763311114375,-36.98526416,0.00012128,2]
[394132024,1763311114398,-9926.03947168,0.00012128,2]
[394132025,1763311114408,-36.98526416,0.00012128,2]
[394132026,1763311114449,-126.38473584,0.00012128,2]
[394132027,1763311114478,-219.14227753,0.00012129,2]
[394132028,1763311114520,-9617.49772247,0.0001213,2]
[394132029,1763311114535,-126.38473584,0.0001213,2]
[394132030,1763311114550,-219.14227753,0.0001213,2]
[394132031,1763311114575,-9308.95597326,0.0001213,2]
[394132032,1763311114589,-10000.01,0.0001213,2]
[394132033,1763311114620,-10000.01,0.0001213,2]
[394132034,1763311119565,-3992.0718978,0.0001213,2]
[394132035,1763311119592,-383.3472717,0.0001213,2]
[394132036,1763311119631,-1249.171661,0.0001213,2]
[394132037,1763311143844,300.0,0.00012172,2]
[394132038,1763311147644,-500.0,0.00012173,2]
[394132039,1763311147667,-55.25448464,0.00012173,2]
[394132040,1763311149942,-284.71714984,0.00012173,2]
[394132041,1763311152087,500.0,0.00012127,2]
[394132042,1763311152125,500.0,0.00012127,2]
[394132043,1763311152264,500.0,0.00012127,2]
[394132044,1763311152301,500.0,0.00012127,2]
[394132045,1763311152335,500.0,0.00012127,2]
[394132046,1763311152378,500.0,0.00012127,2]
[394132047,1763311152435,500.0,0.00012127,2]
[394132048,1763311152472,500.0,0.00012127,2]
[394132049,1763311152509,500.0,0.00012127,2]
[394132050,1763311152560,500.0,0.00012127,2]
[394132051,1763311152604,500.0,0.00012127,2]
[394132052,1763311152647,500.0,0.00012127,2]
[394132053,1763311152698,500.0,0.00012127,2]
[394132054,1763311152736,500.0,0.00012127,2]
[394132055,1763311152775,364.25096883,0.00012127,2]
[394132056,1763311152827,500.0,0.00012127,2]
[394132057,1763311152948,500.0,0.00012127,2]
[394132058,1763311152998,500.0,0.00012127,2]
[394132059,1763311153091,-160.02836552,0.00012173,2]
[394132060,1763311153120,-412.11065633,0.00012173,2]
[394132061,1763311153149,-501.9409669,0.00012173,2]
[394132062,1763311153183,-506.73818645,0.00012173,2]
[394132063,1763311153213,-436.20531373,0.00012173,2]
[394132064,1763311153302,500.0,0.00012127,2]
[394132065,1763311153582,500.0,0.00012127,2]
[394132066,1763311153787,327.94383899,0.00012127,2]
[394132067,1763311154933,1178.4006831,0.00012127,2]
[394132068,1763311154966,1178.4006831,0.00012127,2]
[394132069,1763311155009,1178.4006831,0.00012127,2]
[394132070,1763311155046,1102.81713385,0.00012127,2]
[394132071,1763311155073,75.58354925,0.00012127,2]
[394132072,1763311155108,1178.4006831,0.00012127,2]
[394132073,1763311155143,1178.4006831,0.00012127,2]
[394132074,1763311155178,1178.4006831,0.00012127,2]
[394132075,1763311155215,1178.4006831,0.00012127,2]
[394132076,1763311155249,1178.4006831,0.00012127,2]
[394132077,1763311155295,1178.4006831,0.00012127,2]
[394132078,1763311155335,1178.4006831,0.00012127,2]
[394132079,1763311155367,1178.4006831,0.00012127,2]
[394132080,1763311155404,497.22098595,0.00012127,2]
[394132081,1763311155429,681.17969715,0.00012127,2]
[394132082,1763311155461,1178.4006831,0.00012127,2]
[394132083,1763311155498,1178.4006831,0.00012127,2]
[394132084,1763311155534,1178.4006831,0.00012127,2]
[394132085,1763311155591,1178.4006831,0.00012127,2]
[394132086,1763311155630,1178.4006831,0.00012127,2]
[394132087,1763311155667,1178.4006831,0.00012127,2]
[394132088,1763311155718,1178.4006831,0.00012127,2]
[394132089,1763311155759,1070.02552115,0.00012127,2]
[394132090,1763311155788,108.37516195,0.00012127,2]
[394132091,1763311155826,1178.4006831,0.00012127,2]
[394132092,1763311155861,1178.4006831,0.00012127,2]
[394132093,1763311155900,1178.4006831,0.00012127,2]
[394132094,1763311155942,1178.4006831,0.00012127,2]
[394132095,1763311155978,1178.4006831,0.00012127,2]
[394132096,1763311156014,1178.4006831,0.00012127,2]
[394132097,1763311156046,1178.4006831,0.00012127,2]
[394132098,1763311156079,1178.4006831,0.00012127,2]
[394132099,1763311156113,464.42937325,0.00012127,2]
[394132100,1763311156140,713.97130985,0.00012127,2]
[394132101,1763311156177,1178.4006831,0.00012127,2]
[394132102,1763311156308,1178.4006831,0.00012127,2]
[394132103,1763311156340,1178.4006831,0.00012127,2]
[394132104,1763311156376,1178.4006831,0.00012127,2]
[394132105,1763311156408,1178.4006831,0.00012127,2]
[394132106,1763311156439,1178.4006831,0.00012127,2]
[394132107,1763311156470,1178.4006831,0.00012127,2]
[394132108,1763311156500,1037.23390845,0.00012127,2]
[394132109,1763311156525,141.16677465,0.00012127,2]
[394132110,1763311156576,1178.4006831,0.00012127,2]
[394132111,1763311156606,1178.4006831,0.00012127,2]
[394132112,1763311156637,1178.4006831,0.00012127,2]
[394132113,1763311156679,1178.4006831,0.00012127,2]
[394132114,1763311156712,1178.4006831,0.00012127,2]
[394132115,1763311156750,1178.4006831,0.00012127,2]
[394132116,1763311156791,1178.4006831,0.00012127,2]
[394132117,1763311156825,1178.4006831,0.00012127,2]
[394132118,1763311156857,431.63776055,0.00012127,2]
[394132119,1763311156883,746.76292255,0.00012127,2]
[394132120,1763311156919,1178.4006831,0.00012127,2]
[394132121,1763311156987,1178.4006831,0.00012127,2]
[394132122,1763311157022,1178.4006831,0.00012127,2]
[394132123,1763311157065,1178.4006831,0.00012127,2]
[394132124,1763311157103,1178.4006831,0.00012127,2]
[394132125,1763311157148,203.0961719,0.00012127,2]
[394132126,1763311157174,975.3045112,0.00012127,2]
[394132127,1763311157222,1178.4006831,0.00012127,2]
[394132128,1763311157254,1178.4006831,0.00012127,2]
[394132129,1763311157287,29.13778455,0.00012127,2]
[394132130,1763311157312,1149.26289855,0.00012127,2]
[394132131,1763311157354,1178.4006831,0.00012127,2]
[394132133,1763311157391,1178.4006831,0.00012127,2]
[394132155,1763311167657,1191.64114022,0.00012127,2]
[394132156,1763311167696,1191.64114022,0.00012127,2]
[394132157,1763311167729,1191.64114022,0.00012127,2]
[394132158,1763311167771,1191.64114022,0.00012127,2]
[394132159,1763311167808,1191.64114022,0.00012127,2]
[394132160,1763311167858,535.74003415,0.00012127,2]
[394132161,1763311167888,655.90110607,0.00012127,2]
[394132162,1763311167925,1191.64114022,0.00012127,2]
[394132163,1763311167959,1191.64114022,0.00012127,2]
[394132164,1763311167992,1191.64114022,0.00012127,2]
[394132165,1763311168025,1191.64114022,0.00012127,2]
[394132166,1763311168063,-600.0,0.00012259,2]
[394132167,1763311168105,1191.64114022,0.00012127,2]
[394132168,1763311168139,1191.64114022,0.00012127,2]
[394132169,1763311168178,1191.64114022,0.00012127,2]
[394132170,1763311168211,1191.64114022,0.00012127,2]
[394132171,1763311168257,1191.64114022,0.00012127,2]
[394132172,1763311168328,1191.64114022,0.00012127,2]
[394132173,1763311168360,1191.64114022,0.00012127,2]
[394132174,1763311168392,458.52201846,0.00012127,2]
[394132175,1763311168418,733.11912176,0.00012127,2]
[394132176,1763311168452,1191.64114022,0.00012127,2]
[394132177,1763311168489,1191.64114022,0.00012127,2]
[394132178,1763311168521,1191.64114022,0.00012127,2]
[394132179,1763311168552,1191.64114022,0.00012127,2]
[394132180,1763311168583,1191.64114022,0.00012127,2]
[394132181,1763311168629,1191.64114022,0.00012127,2]
[394132182,1763311168662,1191.64114022,0.00012127,2]
[394132183,1763311168693,1191.64114022,0.00012127,2]
[394132184,1763311168736,1191.64114022,0.00012127,2]
[394132185,1763311168769,466.88087824,0.00012127,2]
[394132186,1763311168795,724.76026198,0.00012127,2]
[394132187,1763311168833,1191.64114022,0.00012127,2]
[394132188,1763311168865,1191.64114022,0.00012127,2]
[394132189,1763311168901,1191.64114022,0.00012127,2]
[394132190,1763311168947,1191.64114022,0.00012127,2]
[394132191,1763311168979,1191.64114022,0.00012127,2]
[394132192,1763311169029,1191.64114022,0.00012127,2]
[394132193,1763311174325,487.81,0.00016255,3]
[394132194,1763311179710,355.41209576,0.00012245,2]
[394132195,1763311191881,340.55422883,0.00012127,2]
[394132196,1763311191956,500.0,0.00012127,2]
[394132197,1763311194968,355.41209576,0.00012245,2]
[394132198,1763311197853,355.41209576,0.0001175,2]
[394132199,1763311213446,-290.65074523,0.00012375,2]
[394132200,1763311217887,290.65074523,0.00012375,2]
[394132204,1763311226137,290.65074523,0.00012375,2]
[394132205,1763311228787,-163.38323025,0.00012402,2]
[394132207,1763311241315,290.65074523,0.00012375,2]
[394132211,1763311249499,290.65074523,0.00012375,2]
[394132212,1763311265044,290.65074523,0.00012375,2]
[394132213,1763311265794,5236.9877928,0.00012112,2]
[394132214,1763311272817,290.65074523,0.00012375,2]
[394132216,1763311288784,290.65074523,0.00012375,2]
[394132227,1763311296633,290.65074523,0.00012375,2]
[394132236,1763311312805,290.65074523,0.00012375,2]
[394132241,1763311318509,300.56268338,0.00011992,2]
[394132242,1763311320448,541.01283008,0.00011992,2]
[394132243,1763311320573,290.65074523,0.00012375,2]
[394132244,1763311322654,961.8005868,0.00011992,2]
[394132245,1763311325034,1501.31060346,0.00011992,2]
[394132247,1763311335693,290.65074523,0.00012375,2]
[394132248,1763311343519,290.65074523,0.00012375,2]
[394132249,1763311348377,206.48039651,0.000124,2]
[394132252,1763311349244,2250.50954869,0.00012262,2]
[394132253,1763311349648,2785.07962493,0.00012166,2]
[394132254,1763311349672,965.13296926,0.00012166,2]
[394132262,1763311358608,290.65074523,0.00012375,2]
[394132263,1763311366436,290.65074523,0.00012375,2]
[394132264,1763311382568,290.65074523,0.00012375,2]
[394132265,1763311390398,290.65074523,0.00012375,2]
[394132266,1763311405642,290.65074523,0.00012375,2]
[394132271,1763311413432,290.65074523,0.00012375,2]
[394132272,1763311428879,290.65074523,0.00012375,2]
[394132273,1763311437282,290.65074523,0.00012375,2]
[394132275,1763311452420,290.65074523,0.00012375,2]
[394132276,1763311460088,290.65074523,0.00012375,2]
[394132277,1763311475128,290.65074523,0.00012375,2]
[394132278,1763311483584,290.65074523,0.00012375,2]
[394132279,1763311500257,290.65074523,0.00012375,2]
[394132280,1763311508031,290.65074523,0.00012375,2]
[394132283,1763311530229,290.65074523,0.00012375,2]
[394132284,1763311552902,290.65074523,0.00012375,2]
[394132355,1763311575311,290.65074523,0.00012375,2]
[394132556,1763311597910,290.65074523,0.00012375,2]
[394132557,1763311620289,290.65074523,0.00012375,2]
[394132558,1763311620835,1538.07,0.00018,14]
[394132563,1763311643368,290.65074523,0.00012375,2]
[394132564,1763311665789,290.65074523,0.00012375,2]
[394132566,1763311688798,290.65074523,0.00012375,2]
[394132569,1763311711255,290.65074523,0.00012375,2]
[394132570,1763311733920,290.65074523,0.00012375,2]
[394132573,1763311742440,219.74738965,0.000124,2]
[394132574,1763311756608,290.65074523,0.00012375,2]
[394132576,1763311779129,290.65074523,0.00012375,2]
[394132577,1763311801308,290.65074523,0.00012375,2]
[394132579,1763311824059,290.65074523,0.00012375,2]
[394132620,1763311832169,-290.65074523,0.000125,2]
[394132622,1763311832179,-258.70008076,0.00012531,2]
[394132624,1763311832189,-500.0,0.00012625,2]
[394132626,1763311832200,-3696.13269853,0.00012647,2]
[394132628,1763311832209,-292.59804701,0.00012685,2]
[394132630,1763311832220,-334.06337025,0.00012685,2]
[394132633,1763311832229,-1000.0,0.00012721,2]
[394132636,1763311832239,-660.21243994,0.00012769,2]
[394132638,1763311832248,-1188.3823919,0.00012769,2]
[394132649,1763311832347,-2112.67980782,0.00012769,2]
[394132651,1763311832357,-2234.51067113,0.0001279,2]
[394132653,1763311832367,-300.0,0.00012806,2]
[394132655,1763311832376,-3786.2198914,0.00012807,2]
[394132657,1763311832386,-1200.0,0.00012807,2]
[394132659,1763311832395,-917.88563569,0.00013268,2]
[394132661,1763311832405,-265.4196878,0.0001344,2]
[394132664,1763311832415,-708.49283292,0.0001344,2]
[394132665,1763311832424,-472.49015126,0.0001344,2]
[394132668,1763311832434,-708.49283292,0.0001344,2]
[394132670,1763311832443,-708.49283292,0.0001344,2]
[394132672,1763311832455,-708.49283292,0.0001344,2]
[394132674,1763311832464,-708.49283292,0.0001344,2]
[394132676,1763311832474,-708.49283292,0.0001344,2]
[394132678,1763311832483,-708.49283292,0.0001344,2]
[394132680,1763311832493,-708.49283292,0.0001344,2]
[394132682,1763311832502,-708.49283292,0.0001344,2]
[394132684,1763311832511,-708.49283292,0.0001344,2]
[394132686,1763311832520,-708.49283292,0.0001344,2]
[394132688,1763311832530,-708.49283292,0.0001344,2]
[394132690,1763311832539,-708.49283292,0.0001344,2]
[394132692,1763311832548,-708.49283292,0.0001344,2]
[394132694,1763311832558,-708.49283292,0.0001344,2]
[394132695,1763311832567,-708.49283292,0.0001344,2]
[394132697,1763311832576,-708.49283292,0.0001344,2]
[394132699,1763311832585,-708.49283292,0.0001344,2]
[394132701,1763311832596,-708.49283292,0.0001344,2]
[394132703,1763311832605,-708.49283292,0.0001344,2]
[394132705,1763311832614,-708.49283292,0.0001344,2]
[394132707,1763311832623,-708.49283292,0.0001344,2]
[394132709,1763311832632,-708.49283292,0.0001344,2]
[394132711,1763311832641,-708.49283292,0.0001344,2]
[394132713,1763311832650,-708.49283292,0.0001344,2]
[394132715,1763311832659,-708.49283292,0.0001344,2]
[394132717,1763311832669,-708.49283292,0.0001344,2]
[394132719,1763311832678,-708.49283292,0.0001344,2]
[394132721,1763311832688,-708.49283292,0.0001344,2]
[394132723,1763311832697,-708.49283292,0.0001344,2]
[394132725,1763311832708,-708.49283292,0.0001344,2]
[394132727,1763311832718,-708.49283292,0.0001344,2]
[394132729,1763311832727,-708.49283292,0.0001344,2]
[394132731,1763311832736,-708.49283292,0.0001344,2]
[394132733,1763311832746,-708.49283292,0.0001344,2]
[394132735,1763311832756,-708.49283292,0.0001344,2]
[394132737,1763311832765,-708.49283292,0.0001344,2]
[394132739,1763311832774,-708.49283292,0.0001344,2]
[394132741,1763311832784,-708.49283292,0.0001344,2]
[394132743,1763311832794,-708.49283292,0.0001344,2]
[394132745,1763311832804,-708.49283292,0.0001344,2]
[394132747,1763311832813,-708.49283292,0.0001344,2]
[394132749,1763311832823,-708.49283292,0.0001344,2]
[394132751,1763311832832,-708.49283292,0.0001344,2]
[394132753,1763311832844,-708.49283292,0.0001344,2]
[394132755,1763311832853,-708.49283292,0.0001344,2]
[394132757,1763311832862,-708.49283292,0.0001344,2]
[394132759,1763311832871,-708.49283292,0.0001344,2]
[394132761,1763311832880,-708.49283292,0.0001344,2]
[394132762,1763311832889,-708.49283292,0.0001344,2]
[394132764,1763311832898,-708.49283292,0.0001344,2]
[394132766,1763311832908,-708.49283292,0.0001344,2]
[394132768,1763311832919,-708.49283292,0.0001344,2]
[394132770,1763311832928,-708.49283292,0.0001344,2]
[394132772,1763311832938,-708.49283292,0.0001344,2]
[394132774,1763311832949,-708.49283292,0.0001344,2]
[394132776,1763311832958,-708.49283292,0.0001344,2]
[394132777,1763311832967,-708.49283292,0.0001344,2]
[394132779,1763311832976,-708.49283292,0.0001344,2]
[394132781,1763311832986,-708.49283292,0.0001344,2]
[394132783,1763311833000,-373.8056632,0.0001344,2]
[394132785,1763311833009,-500.0,0.0001344,2]
[394132787,1763311833019,-703.60667545,0.0001344,2]
[394132789,1763311833028,-703.60667545,0.0001344,2]
[394132791,1763311833039,-703.60667545,0.0001344,2]
[394132793,1763311833048,-703.60667545,0.0001344,2]
[394132796,1763311833058,-703.60667545,0.0001344,2]
[394132797,1763311833068,-703.60667545,0.0001344,2]
[394132800,1763311833080,-703.60667545,0.0001344,2]
[394132802,1763311833089,-703.60667545,0.0001344,2]
[394132804,1763311833098,-703.60667545,0.0001344,2]
[394132805,1763311833107,-703.60667545,0.0001344,2]
[394132807,1763311833116,-703.60667545,0.0001344,2]
[394132809,1763311833126,-703.60667545,0.0001344,2]
[394132811,1763311833135,-703.60667545,0.0001344,2]
[394132813,1763311833145,-703.60667545,0.0001344,2]
[394132815,1763311833155,-703.60667545,0.0001344,2]
[394132817,1763311833164,-703.60667545,0.0001344,2]
[394132819,1763311833174,-703.60667545,0.0001344,2]
[394132821,1763311833183,-703.60667545,0.0001344,2]
[394132823,1763311833192,-703.60667545,0.0001344,2]
[394132825,1763311833203,-703.60667545,0.0001344,2]
[394132827,1763311833213,-703.60667545,0.0001344,2]
[394132829,1763311833222,-703.60667545,0.0001344,2]
[394132831,1763311833231,-703.60667545,0.0001344,2]
[394132832,1763311833240,-703.60667545,0.0001344,2]
[394132834,1763311833250,-703.60667545,0.0001344,2]
[394132836,1763311833259,-703.60667545,0.0001344,2]
[394132838,1763311833269,-703.60667545,0.0001344,2]
[394132839,1763311833279,-703.60667545,0.0001344,2]
[394132841,1763311833288,-866.62111402,0.0001344,2]
[394132843,1763311833298,-500.0,0.0001344,2]
[394132844,1763311833307,-398.99053806,0.00013441,2]
[394132845,1763311833316,-718.18296851,0.00013441,2]
[394132846,1763311833326,-1276.76972179,0.00013441,2]
[394132847,1763311833335,-318.99138904,0.00013698,2]
[394132848,1763311833346,-897.054735,0.00013699,2]
[394132849,1763311833356,-2135.46107,0.00013699,2]
[394132850,1763311833366,-200.3881,0.00013699,2]
[394132851,1763311833376,-362.98690802,0.00013714,2]
[394132852,1763311833385,-216.033626,0.00013775,2]
[394132853,1763311833395,-4320.86012067,0.00013871,2]
[394132854,1763311833404,-1632.5189327,0.00013894,2]
[394132855,1763311833413,-500.0,0.00013954,2]
[394132856,1763311833422,-500.0,0.00013954,2]
[394132857,1763311833431,-500.0,0.00013954,2]
[394132858,1763311833441,-500.0,0.00013954,2]
[394132859,1763311833450,-500.0,0.00013954,2]
[394132860,1763311833459,-404.0,0.00013954,2]
[394132861,1763311833469,-50023.48278588,0.00013955,2]
[394132862,1763311833481,-21720.45000002,0.00013955,2]
[394132883,1763311838101,-2417.235055,0.00013955,2]
[394132885,1763311838112,-1566.68091614,0.00013955,2]
[394132887,1763311838123,-2154.36218675,0.00013955,2]
[394132889,1763311838135,-356.87099803,0.00013955,2]
[394132896,1763311838189,-527.49084545,0.00013955,2]
[394132899,1763311838204,-479.02910092,0.00013955,2]
[394132901,1763311838221,-955.22253843,0.00013955,2]
[394132903,1763311838233,-1020.48504317,0.00013955,2]
[394132906,1763311838244,-2329.95344942,0.00013955,2]
[394132908,1763311838256,-746.61058539,0.00013955,2]
[394132910,1763311838267,-418.70525394,0.00013955,2]
[394133104,1763311840172,-14566.43922154,0.00013955,2]
[394133110,1763311840228,-8171.20768032,0.00013955,2]
[394133134,1763311840409,-1868.20937584,0.00013955,2]
[394133135,1763311840420,-735.17,0.00013955,2]
[394133138,1763311840432,-12720.1,0.00013955,2]
[394133218,1763311844134,-2578.01999941,0.00013955,2]
[394133248,1763311846403,-1183.95761952,0.00013816,2]
[394133250,1763311846417,-1286.44427966,0.00013816,2]
[394133252,1763311846433,-19436.45290176,0.00013816,2]
[394133253,1763311846444,-58192.6646708,0.00013955,2]